bitfinex/quotes_ETHUSD_20240824
["timestamp","ask_amount","ask_price","bid_price","bid_amount"]
[1724486010488,2.4825,2763.0,2762.9,0.052764]
[1724486010689,2.4825,2763.0,2762.6,4.37818333]
[1724486010875,2.4825,2763.0,2762.9,0.052764]
[1724486011076,2.4825,2763.0,2762.6,5.64667055]
[1724486011271,2.4825,2763.0,2762.9,0.052764]
[1724486011777,2.4825,2763.0,2762.7,0.75849333]
[1724486011989,3.0500048,2763.0,2762.9,0.052764]
[1724486012193,3.0500048,2763.0,2762.8,0.05282697]
[1724486012368,3.0500048,2763.0,2762.7,0.75849333]
[1724486012570,3.0500048,2763.0,2762.8,3.1994758]
[1724486012782,3.0500048,2763.0,2762.8,0.05282697]
[1724486012991,3.0500048,2763.0,2762.7,0.75849333]
[1724486013195,3.0500048,2763.0,2762.9,0.052764]
[1724486013366,3.0500048,2763.0,2762.8,0.05282697]
[1724486013566,3.0500048,2763.0,2762.7,0.75849333]
[1724486013787,3.0500048,2763.0,2762.8,3.1994753]
[1724486013993,3.0500048,2763.0,2762.8,0.05282697]
[1724486014377,3.0500048,2763.0,2762.7,0.75849333]
[1724486014594,3.0500048,2763.0,2762.8,3.19947547]
[1724486014796,3.0500048,2763.0,2762.8,0.05282697]
[1724486015193,3.0500048,2763.0,2762.7,0.75849333]
[1724486015395,3.0500048,2763.0,2762.9,0.052764]
[1724486015596,3.0500048,2763.0,2762.8,0.05282697]
[1724486015794,3.0500048,2763.0,2762.9,0.052764]
[1724486016201,3.0500048,2763.0,2762.7,0.75849333]
[1724486016411,3.0500048,2763.0,2762.9,0.052764]
[1724486016625,3.0500048,2763.0,2762.8,0.05281075]
[1724486016786,3.0500048,2763.0,2762.9,0.05274778]
[1724486017306,3.0500048,2763.0,2762.7,0.75849333]
[1724486017485,3.0500048,2763.0,2762.8,3.14665296]
[1724486017684,3.0500048,2763.0,2762.8,0.05281075]
[1724486018197,3.0500048,2763.0,2762.9,0.05274778]
[1724486018385,3.0500048,2763.0,2762.7,0.75849333]
[1724486018587,3.0500048,2763.0,2762.8,3.1466527]
[1724486018814,3.0500048,2763.0,2762.7,0.75849333]
[1724486018977,3.0500048,2763.0,2762.8,3.14664983]
[1724486019310,3.0500048,2763.0,2762.9,1.25865976]
[1724486021074,3.0500048,2763.0,2762.7,0.75849333]
[1724486021276,3.0500048,2763.0,2762.8,3.14664842]
[1724486021594,3.0500048,2763.0,2762.9,1.25865937]
[1724486022220,3.0500048,2763.0,2762.7,0.75849333]
[1724486022510,3.0500048,2763.0,2762.8,3.14665553]
[1724486022714,3.0500048,2763.0,2762.9,1.25866221]
[1724486024286,3.0500048,2763.0,2762.9,3.14665155]
[1724486024488,2.4825,2763.0,2762.9,3.14665155]
[1724486026113,0.56750525,2763.1,2762.9,3.14664726]
[1724486026316,2.4082,2763.2,2763.0,1.25864383]
[1724486026516,2.4082,2763.2,2762.8,5.64640055]
[1724486026718,2.4082,2763.2,2762.9,3.1465953]
[1724486026926,2.4082,2763.2,2763.0,1.25863812]
[1724486027216,2.4082,2763.2,2762.8,5.64640055]
[1724486027518,2.4082,2763.2,2762.9,3.14660072]
[1724486027839,2.4082,2763.2,2763.0,1.25864029]
[1724486028015,2.4082,2763.2,2762.8,5.64640055]
[1724486028016,3.61925,2763.1,2762.8,0.75849333]
[1724486028324,3.61925,2763.1,2762.9,3.1466188]
[1724486028622,3.61925,2763.1,2762.8,0.75849333]
[1724486028777,3.61925,2763.1,2762.9,3.14663322]
[1724486028977,3.61925,2763.1,2762.8,0.75849333]
[1724486029179,6.02719,2763.2,2762.9,3.14663268]
[1724486029420,6.02719,2763.2,2762.8,0.75849333]
[1724486029743,9.64627,2763.2,2762.9,3.1466325]
[1724486029941,9.64626,2763.2,2762.8,0.75849333]
[1724486030128,6.02719,2763.2,2762.9,3.14663005]
[1724486030309,9.64628,2763.2,2762.8,0.75849333]
[1724486030515,6.02719,2763.2,2762.9,3.1466298]
[1724486030737,9.64627,2763.2,2762.8,0.75849333]
[1724486031033,3.61912,2763.1,2762.9,3.14662993]
[1724486031240,3.61912,2763.1,2762.7,0.75849333]
[1724486031533,3.61912,2763.1,2762.8,3.14664926]
[1724486031744,3.61912,2763.1,2762.9,1.2586597]
[1724486031900,3.61912,2763.1,2762.7,0.75849333]
[1724486032101,3.61912,2763.1,2762.8,3.14664586]
[1724486032320,3.61912,2763.1,2762.9,1.25865834]
[1724486032540,3.61912,2763.1,2762.7,0.75849333]
[1724486032754,3.61912,2763.1,2762.8,3.14664472]
[1724486033039,3.61912,2763.1,2762.9,1.25865789]
[1724486033265,3.61912,2763.1,2762.7,0.75849333]
[1724486033409,3.61912,2763.1,2762.8,3.14664888]
[1724486033743,3.61912,2763.1,2762.9,1.25865955]
[1724486033937,3.61912,2763.1,2762.7,0.75849333]
[1724486034142,3.61912,2763.1,2762.8,3.1466448]
[1724486034445,3.61912,2763.1,2762.9,3.14664525]
[1724486034632,3.61912,2763.1,2762.7,0.75849333]
[1724486034833,3.61912,2763.1,2762.8,3.14664545]
[1724486035147,3.61912,2763.1,2762.9,3.14664545]
[1724486035311,3.61912,2763.1,2762.7,0.75849333]
[1724486035507,2.4082,2763.2,2762.8,3.1466445]
[1724486035702,6.02721,2763.2,2762.9,3.1466445]
[1724486035930,6.02721,2763.2,2762.7,0.75849333]
[1724486036131,6.02721,2763.2,2762.8,3.14664752]
[1724486036329,6.02721,2763.2,2762.9,3.14664752]
[1724486036532,6.02721,2763.2,2762.7,0.75849333]
[1724486036764,6.02721,2763.2,2762.8,3.9051406]
[1724486036979,6.02721,2763.2,2762.9,3.14664727]
[1724486037180,6.02721,2763.2,2763.0,1.25865891]
[1724486037337,6.02721,2763.2,2762.8,0.75849333]
[1724486037538,6.02721,2763.2,2762.9,3.1466312]
[1724486037776,6.02721,2763.2,2763.0,1.25865248]
[1724486037981,6.02721,2763.2,2762.8,0.75849333]
[1724486038157,6.02721,2763.2,2762.9,3.1466313]
[1724486038343,6.02721,2763.2,2763.0,1.25865252]
[1724486038544,6.02721,2763.2,2762.8,0.75849333]
[1724486038855,6.02721,2763.2,2762.9,3.14662913]
[1724486039044,6.02721,2763.2,2763.0,1.25865165]
[1724486039239,6.02721,2763.2,2762.8,0.75849333]
[1724486039475,6.02721,2763.2,2762.9,3.14663025]
[1724486039655,6.02721,2763.2,2762.8,0.75849333]
[1724486039656,6.02721,2763.2,2763.0,1.2586521]
[1724486039954,6.02721,2763.2,2762.8,0.75849333]
[1724486040157,6.02721,2763.2,2762.9,3.14663026]
[1724486040369,6.02721,2763.2,2762.8,0.75849333]
[1724486040578,6.02721,2763.2,2762.9,3.14663665]
[1724486040778,6.02721,2763.2,2762.8,0.75849333]
[1724486040944,6.02721,2763.2,2762.9,3.1466368]
[1724486041147,6.02721,2763.2,2762.8,0.75849333]
[1724486041447,6.02721,2763.2,2762.9,3.14663678]
[1724486041646,6.02721,2763.2,2762.8,0.75849333]
[1724486041940,6.02721,2763.2,2762.9,3.1466365]
[1724486042146,6.02721,2763.2,2762.8,0.75849333]
[1724486042345,6.02721,2763.2,2762.9,3.14663738]
[1724486042573,6.02721,2763.2,2762.8,0.75849333]
[1724486042784,6.02721,2763.2,2762.9,3.14663746]
[1724486042982,6.02721,2763.2,2762.8,0.75849333]
[1724486043279,7.2385,2763.0,2762.9,3.14663693]
[1724486043490,3.61955,2762.8,2762.6,0.75849333]
[1724486043664,3.61955,2762.8,2762.7,3.14688103]
[1724486043868,3.61955,2762.8,2762.7,1.25875241]
[1724486044076,4.5836,2762.8,2762.7,1.25875241]
[1724486044280,4.5836,2762.8,2762.7,1.25878241]
[1724486044661,4.5836,2762.8,2762.5,0.75849333]
[1724486044872,4.5836,2762.8,2762.6,3.14697365]
[1724486045075,4.5836,2762.8,2762.7,1.25878946]
[1724486045247,4.5836,2762.8,2762.5,0.75849333]
[1724486045454,4.5836,2762.8,2762.6,3.14697062]
[1724486045654,4.5836,2762.8,2762.5,0.75849333]
[1724486045954,4.5836,2762.8,2762.6,3.14694425]
[1724486046174,4.5836,2762.8,2762.7,1.2587777]
[1724486046483,0.96405,2762.8,2762.7,1.2587777]
[1724486046688,0.96405,2762.8,2762.5,0.75849333]
[1724486046891,6.02109,2762.9,2762.6,3.14693902]
[1724486047199,6.02109,2762.9,2762.4,4.37852333]
[1724486047354,6.02109,2762.9,2762.5,3.14698091]
[1724486047557,6.02109,2762.9,2762.6,1.25879236]
[1724486047792,2.4017,2762.7,2762.4,0.75849333]
[1724486048104,2.4017,2762.5,2762.1,0.75849333]
[1724486048290,6.02168,2762.5,2762.4,0.05266609]
[1724486048491,2.4017,2762.5,2762.0,4.37904333]
[1724486048655,2.4017,2762.5,2762.4,0.05266609]
[1724486048857,2.4017,2762.5,2762.1,6.90637432]
[1724486049064,2.4017,2762.5,2762.4,0.05269039]
[1724486049264,2.4017,2762.5,2762.1,5.64740055]
[1724486049585,2.4017,2762.5,2762.4,0.05269039]
[1724486049786,2.4017,2762.5,2762.1,2.02698055]
[1724486049987,2.4017,2762.5,2762.4,0.05269039]
[1724486050319,2.4017,2763.1,2762.4,1.64117251]
[1724486050470,0.56749461,2763.5,2762.4,5.54685596]
[1724486050680,0.56749461,2763.5,2762.5,2.60122762]
[1724486050850,0.1785191,2765.0,2762.5,2.60122762]
[1724486050851,7.45,2764.2,2764.0,3.6179]
[1724486051051,1.26848722,2764.3,2764.1,1.2588471]
[1724486051253,3.61794,2764.0,2763.9,1.13909718]
[1724486051490,3.67018722,2764.2,2763.8,0.33982762]
[1724486051787,2.4017,2764.2,2763.5,1.26848722]
[1724486052509,2.4017,2764.2,2763.3,3.61885]
[1724486052695,2.4017,2764.2,2763.2,3.61898]
[1724486053584,2.4017,2764.2,2763.3,3.61886]
[1724486056109,2.4017,2764.2,2763.3,3.61805325]
[1724486059729,2.4017,2764.2,2763.5,3.61858]
[1724486059934,2.4017,2764.2,2763.3,3.61884]
[1724486060233,2.4017,2764.2,2763.6,3.61846]
[1724486061352,29.9,2764.3,2763.6,3.61846]
[1724486061502,29.9,2764.3,2763.7,3.61833]
[1724486061503,26.9,2764.3,2763.7,3.61833]
[1724486061703,26.9,2764.3,2763.7,5.96453]
[1724486061938,26.9,2764.3,2763.9,3.61804]
[1724486062242,2.4017,2764.5,2763.9,3.61804]
[1724486062446,5.4017,2764.5,2763.9,3.61804]
[1724486062600,5.4017,2764.5,2763.7,5.96453]
[1724486062808,5.4017,2764.5,2763.7,4.576638]
[1724486064910,5.4017,2764.5,2763.8,0.07235991]
[1724486065111,5.4017,2764.5,2763.7,3.61833]
[1724486065321,5.4017,2764.5,2763.9,3.61807]
[1724486066111,5.4017,2764.5,2763.8,0.55]
[1724486066311,5.4017,2764.5,2763.8,0.966833]
[1724486067464,5.4017,2764.5,2763.8,4.585023]
[1724486068062,5.4017,2764.5,2763.9,3.61806]
[1724486068953,11.06681,2764.9,2764.0,3.61792]
[1724486069159,8.97419,2764.8,2764.1,3.61779]
[1724486069479,2.3573,2764.8,2764.1,4.575995]
[1724486069971,2.3573,2764.8,2764.2,3.61762]
[1724486070429,7.45,2764.9,2764.3,3.61753]
[1724486071261,7.45,2764.9,2764.2,3.61767]
[1724486071483,11.06677,2764.9,2764.1,4.575935]
[1724486071696,5.97439,2764.7,2763.9,3.61805]
[1724486071837,5.97439,2764.7,2763.7,3.61824]
[1724486072026,3.61727,2764.6,2763.8,4.1682]
[1724486072429,3.61727,2764.6,2763.8,0.55]
[1724486073061,2.3573,2764.7,2763.9,3.61807]
[1724486073331,3.9324877,2764.7,2764.0,3.61792]
[1724486073742,3.9324877,2764.7,2764.0,3.6179]
[1724486075004,3.9324877,2764.7,2763.9,3.61807]
[1724486075513,2.3573,2764.6,2763.9,3.61807]
[1724486078317,2.3573,2764.6,2764.0,3.61794]
[1724486078632,0.39324877,2764.5,2763.9,3.61807]
[1724486078988,0.39324877,2764.5,2763.9,7.23605]
[1724486079700,2.3573,2764.6,2764.0,3.61793]
[1724486079904,2.3573,2764.6,2764.1,3.61771]
[1724486088660,2.3573,2764.6,2763.9,7.23597]
[1724486089006,2.3573,2764.6,2764.0,3.61791]
[1724486090471,5.98983,2764.5,2763.8,4.1682]
[1724486091331,2.3725,2764.4,2763.8,4.1681]
[1724486091734,2.3725,2764.4,2763.4,3.61865]
[1724486091935,2.3725,2764.4,2763.6,3.61834]
[1724486092328,2.3725,2764.3,2763.6,3.61834]
[1724486092535,3.716502,2764.3,2763.6,3.61834]
[1724486092702,2.3725,2764.2,2763.6,3.61834]
[1724486093328,2.3725,2764.1,2763.4,3.61869]
[1724486093514,2.3725,2764.0,2763.4,3.61865]
[1724486093713,2.3725,2764.0,2763.2,3.61895]
[1724486093938,2.3725,2763.8,2763.2,3.61895]
[1724486094141,2.3725,2763.8,2763.0,3.6192]
[1724486094439,2.3725,2763.7,2763.0,3.6192]
[1724486095054,2.3725,2763.7,2763.1,3.61906]
[1724486095341,2.3725,2763.7,2763.2,3.61897]
[1724486095519,2.669654,2763.7,2763.2,3.61897]
[1724486097722,2.669654,2763.7,2763.0,7.23835]
[1724486098104,2.669654,2763.7,2763.0,3.61915]
[1724486098741,2.669654,2763.7,2763.2,3.6189]
[1724486099050,2.669654,2763.7,2763.1,3.55684]
[1724486099350,2.669654,2763.7,2763.1,3.51194]
[1724486101246,2.669654,2763.7,2763.2,3.61898]
[1724486101247,2.3725,2763.7,2763.2,3.61898]
[1724486101408,2.3725,2763.7,2763.3,3.61875]
[1724486105610,2.3725,2763.7,2763.4,3.61871]
[1724486105852,2.3043,2763.9,2763.7,3.61828]
[1724486106037,2.3043,2763.9,2763.5,7.78698]
[1724486106355,2.3043,2763.9,2763.6,3.61842]
[1724486110662,2.3043,2763.9,2763.7,3.61833]
[1724486110857,7.45,2764.1,2763.9,3.61805]
[1724486111159,2.3043,2764.2,2763.9,3.61797]
[1724486111358,2.3043,2764.5,2764.0,4.16782]
[1724486111746,2.3043,2764.5,2764.1,3.6178]
[1724486115059,2.3043,2764.5,2764.1,7.23553]
[1724486115267,2.3043,2764.5,2764.1,3.61773]
[1724486120432,2.3043,2764.5,2764.1,7.23546]
[1724486120639,2.3043,2764.5,2764.1,4.396276]
[1724486122276,7.45,2764.6,2764.1,4.396276]
[1724486122580,7.45,2764.6,2764.1,3.61773]
[1724486123464,2.4911,2764.5,2764.1,3.61773]
[1724486127279,2.4911,2764.5,2764.1,4.88571968]
[1724486127484,7.45,2764.6,2764.1,7.15021968]
[1724486128745,2.4911,2764.5,2764.1,3.61773]
[1724486128967,2.4911,2764.5,2764.1,4.88571968]
[1724486129170,7.45,2764.6,2764.1,4.88571968]
[1724486129882,7.45,2764.6,2764.1,8.50343968]
[1724486130055,7.45,2764.6,2764.1,6.01750365]
[1724486131608,7.45,2764.6,2764.1,9.63523365]
[1724486131778,7.45,2764.6,2764.1,6.01750365]
[1724486132291,2.4911,2764.7,2764.1,9.63523365]
[1724486133096,2.4911,2764.7,2764.1,6.01750365]
[1724486134203,2.4911,2764.7,2764.1,9.63522365]
[1724486134583,2.4911,2764.7,2764.1,6.01750365]
[1724486135013,2.4911,2764.7,2764.2,3.61764]
[1724486135685,4.146888,2764.7,2764.1,3.61772]
[1724486136568,4.146888,2764.7,2763.7,3.61826]
[1724486136569,1.26798968,2764.3,2763.7,3.61826]
[1724486136776,2.4911,2764.2,2763.5,3.61859]
[1724486136990,2.4911,2764.2,2763.3,6.26537697]
[1724486136991,2.4911,2764.0,2763.3,3.61879]
[1724486137194,2.4911,2764.0,2763.3,3.61878]
[1724486137392,3.22877697,2764.0,2763.3,3.61878]
[1724486137594,3.22877697,2764.0,2763.3,3.61877]
[1724486137780,3.22877697,2764.0,2763.2,3.61897]
[1724486137781,6.84679697,2764.0,2763.2,3.61897]
[1724486138083,6.84679697,2764.0,2763.3,3.61884]
[1724486138487,6.84679697,2764.0,2763.1,3.61903]
[1724486138687,0.81147866,2763.9,2763.2,4.88688968]
[1724486139491,2.4911,2763.8,2763.3,3.61881]
[1724486140524,2.4911,2763.8,2763.1,7.23807]
[1724486140683,2.4911,2763.8,2763.1,3.61903]
[1724486141014,6.10931,2763.8,2763.1,3.61903]
[1724486141315,0.69207887,2763.7,2763.1,3.61903]
[1724486141516,0.69207887,2763.7,2763.1,7.23807]
[1724486141718,2.4911,2763.8,2763.1,7.23807]
[1724486142017,2.4911,2763.8,2762.9,5.88377]
[1724486142222,2.4911,2763.8,2763.0,0.55]
[1724486142223,6.10932,2763.8,2763.0,0.55]
[1724486142749,6.10932,2763.8,2763.0,4.16915]
[1724486143086,6.10932,2763.8,2763.1,3.61911]
[1724486143286,0.69207987,2763.7,2763.1,3.61911]
[1724486143620,2.2847,2763.6,2763.0,0.55]
[1724486143791,2.2847,2763.6,2762.9,3.61927]
[1724486143992,2.2847,2763.6,2762.9,7.23857]
[1724486144408,2.2847,2763.6,2762.9,3.61927]
[1724486144615,2.2847,2763.4,2762.9,3.61927]
[1724486144993,2.2847,2763.4,2762.9,7.23854]
[1724486145781,2.2847,2763.4,2763.0,3.61924]
[1724486149482,2.2847,2763.4,2762.9,3.61927]
[1724486151123,2.2847,2763.4,2762.9,7.23856]
[1724486151285,2.2847,2763.4,2762.9,3.61927]
[1724486151714,2.2847,2763.4,2762.8,3.6195]
[1724486151930,2.875018,2763.4,2762.8,3.6195]
[1724486154695,2.875018,2763.4,2762.9,3.61937]
[1724486156546,2.2847,2763.4,2762.9,3.61937]
[1724486160552,2.2847,2763.4,2762.7,3.61953]
[1724486160860,2.2847,2763.4,2762.8,0.55]
[1724486161337,2.2847,2763.4,2762.8,4.16948]
[1724486162657,2.2847,2763.4,2762.8,0.55]
[1724486162658,4.26918811,2763.4,2762.8,0.55]
[1724486162808,2.4687,2763.2,2762.7,3.61953]
[1724486163741,2.4687,2763.2,2762.7,7.23908]
[1724486164043,2.4687,2763.2,2762.8,3.61951]
[1724486164338,2.4687,2763.2,2762.7,3.61953]
[1724486167702,2.4687,2763.2,2762.3,2.3578]
[1724486167942,0.36193488,2763.1,2762.4,4.88918811]
[1724486168114,0.36193488,2763.1,2762.4,4.88914811]
[1724486168313,2.4687,2763.0,2762.4,4.88914811]
[1724486168534,2.4687,2763.0,2762.4,8.50910811]
[1724486169141,2.4687,2763.0,2762.5,0.55]
[1724486170140,3.11367249,2763.0,2762.5,0.55]
[1724486176065,2.4687,2763.0,2762.5,0.55]
[1724486178037,3.61901,2763.2,2762.5,0.55]
[1724486178038,9.7536,2763.3,2762.7,3.61956]
[1724486179041,2.3036,2763.2,2762.6,1.26918811]
[1724486179240,2.3036,2763.2,2762.7,0.55]
[1724486179480,4.30272,2763.2,2762.7,0.55]
[1724486181775,2.3036,2763.2,2762.7,4.16964]
[1724486183052,1.26918811,2763.1,2762.3,4.37948812]
[1724486183266,2.3036,2763.2,2762.4,1.81918811]
[1724486183267,2.2614,2762.9,2762.4,1.81918811]
[1724486183582,2.2614,2762.9,2762.4,9.05913811]
[1724486183783,2.2614,2762.9,2762.5,3.61989]
[1724486183981,2.2614,2762.9,2762.6,0.55]
[1724486186858,2.2614,2762.9,2762.4,4.88911811]
[1724486186859,2.2614,2762.9,2762.5,0.55]
[1724486192083,2.2614,2762.9,2762.5,4.16989]
[1724486192446,2.2614,2762.9,2762.5,0.55]
[1724486194751,2.2614,2762.9,2762.5,4.1699]
[1724486195048,2.2614,2762.9,2762.5,0.55]
[1724486196983,2.2614,2762.9,2762.5,4.16983]
[1724486197205,2.2614,2762.9,2762.6,3.61976]
[1724486198376,2.2614,2762.9,2762.5,0.55]
[1724486201585,2.2614,2762.9,2762.4,2.43815046]
[1724486201790,3.61953,2762.8,2762.2,0.75939812]
[1724486201988,5.93724,2762.7,2762.3,1.25888566]
[1724486202188,0.593724,2762.6,2762.2,1.88832699]
[1724486202416,0.593724,2762.6,2762.1,1.88836897]
[1724486202759,0.593724,2762.6,2762.0,3.62043]
[1724486202893,0.593724,2762.6,2762.1,3.14727615]
[1724486203088,0.593724,2762.6,2762.0,7.2409]
[1724486203316,0.593724,2762.6,2762.1,3.14731848]
[1724486203485,0.593724,2762.6,2762.0,4.37982812]
[1724486203679,0.593724,2762.6,2762.1,6.76771748]
[1724486203881,2.3176,2762.7,2762.2,6.69838777]
[1724486204081,2.3176,2762.7,2762.2,5.43947811]
[1724486207111,7.45,2763.3,2762.6,1.26918811]
[1724486207112,2.3176,2763.0,2762.6,1.26918811]
[1724486207309,2.3176,2763.0,2762.7,0.55]
[1724486207813,2.3176,2763.0,2762.6,0.55]
[1724486209779,2.3176,2763.0,2762.3,4.37950812]
[1724486210018,2.3176,2763.0,2762.6,0.55]
[1724486210375,2.3176,2763.0,2762.4,2.43815953]
[1724486210714,2.3176,2763.0,2762.5,1.25877295]
[1724486210898,2.3176,2763.0,2762.6,0.55]
[1724486211379,2.3176,2763.0,2762.5,0.55]
[1724486211577,2.3176,2763.0,2762.4,0.55]
[1724486211779,2.3176,2763.0,2762.5,1.2587729]
[1724486212088,2.3176,2763.0,2762.6,0.55]
[1724486212300,2.3176,2763.0,2762.4,0.55]
[1724486212505,2.3176,2763.0,2762.5,1.25877308]
[1724486212680,2.3176,2763.0,2762.6,0.55]
[1724486212885,2.3176,2763.0,2762.4,1.28377934]
[1724486213089,2.3176,2763.0,2762.5,1.25877272]
[1724486213296,2.3176,2763.0,2762.6,0.55]
[1724486213731,3.24992493,2763.0,2762.5,0.55]
[1724486213900,3.24992493,2763.0,2762.3,4.37950812]
[1724486213901,2.3176,2762.9,2762.4,0.55]
[1724486216126,2.3176,2762.9,2762.5,1.25877918]
[1724486216285,2.3176,2762.9,2762.3,0.75939812]
[1724486216286,3.61946,2762.9,2762.3,0.75939812]
[1724486216482,2.3176,2762.8,2762.1,4.37978812]
[1724486216824,3.61965,2762.7,2762.2,3.1471585]
[1724486216995,2.3176,2762.6,2762.3,1.2588634]
[1724486217183,2.3176,2762.6,2762.1,0.75939812]
[1724486217387,2.3176,2762.6,2762.2,3.14713158]
[1724486217587,2.3176,2762.6,2762.3,1.25885263]
[1724486217886,2.3176,2762.6,2762.1,0.75939812]
[1724486218191,2.3176,2762.6,2762.2,3.14717673]
[1724486218386,2.98338748,2762.6,2762.0,3.62052]
[1724486218722,2.98338748,2762.6,2762.1,3.1472862]
[1724486219048,2.98338748,2762.6,2762.1,3.62042]
[1724486219321,2.3176,2762.6,2762.2,1.25886525]
[1724486219527,2.3176,2762.6,2762.2,0.55]
[1724486219687,2.3176,2762.6,2762.2,4.17027]
[1724486220107,2.3176,2762.6,2762.2,0.55]
[1724486223839,2.3176,2762.6,2762.1,1.26918811]
[1724486224006,2.62142248,2762.6,2762.1,1.26918811]
[1724486224751,2.62142248,2762.6,2762.0,3.62049]
[1724486224909,2.62142248,2762.6,2762.1,0.55]
[1724486225108,2.62142248,2762.6,2761.9,2.02858623]
[1724486225309,2.4532,2762.5,2761.8,3.62071]
[1724486225538,2.4532,2762.4,2761.9,3.69754791]
[1724486225748,2.4532,2762.4,2761.9,0.55]
[1724486226270,2.4532,2762.4,2761.9,4.17069]
[1724486227611,2.4532,2762.4,2762.1,1.26918811]
[1724486228323,2.4532,2762.4,2762.1,4.88959811]
[1724486228511,2.4532,2762.4,2762.1,5.87154273]
[1724486229047,2.4532,2762.6,2762.2,4.17028]
[1724486230027,2.4532,2762.6,2762.2,0.55]
[1724486230227,2.4532,2762.5,2761.8,3.62072]
[1724486230457,2.4532,2762.5,2762.3,0.05931839]
[1724486230617,0.607299,2762.4,2761.9,0.55]
[1724486231243,0.607299,2762.4,2761.9,4.17067]
[1724486231439,2.4532,2762.5,2762.0,1.25900326]
[1724486231638,2.4532,2762.5,2761.9,6.05911903]
[1724486231849,2.4532,2762.5,2761.7,2.02858623]
[1724486232150,2.4532,2762.4,2761.8,1.2590042]
[1724486232378,2.82543881,2762.3,2761.7,5.50951581]
[1724486232562,2.4532,2762.3,2761.9,3.62069]
[1724486235054,2.4532,2762.3,2761.7,3.62085]
[1724486235447,2.4532,2762.3,2761.5,6.7790459]
[1724486235627,2.4532,2762.3,2761.6,1.80915268]
[1724486235829,2.4532,2762.2,2761.6,4.17105]
[1724486236275,2.4532,2762.2,2761.7,3.62084]
[1724486238952,2.4532,2762.2,2761.6,0.55]
[1724486239451,2.4532,2762.2,2761.6,4.17106]
[1724486242885,2.4532,2762.2,2761.7,0.05317255]
[1724486243092,4.88962811,2762.1,2761.7,0.05317255]
[1724486243292,2.4532,2762.0,2761.2,3.62157]
[1724486244326,2.4532,2762.0,2761.4,3.62133]
[1724486253008,3.62071,2761.9,2761.3,1.26918811]
[1724486253231,2.4991,2761.8,2761.3,1.26918811]
[1724486256858,3.61808,2763.9,2762.0,3.62055]
[1724486257060,8.57734223,2766.7,2762.0,3.62055]
[1724486257061,2.4991,2763.2,2762.5,1.26918811]
[1724486257257,2.4991,2763.2,2762.0,2.4712]
[1724486257258,2.4991,2763.2,2762.7,1.26918811]
[1724486257422,2.4991,2763.2,2762.9,1.26918811]
[1724486257736,2.4991,2764.0,2763.4,3.61863]
[1724486258075,2.4991,2764.6,2763.9,1.26918811]
[1724486258286,21.9491,2764.6,2763.9,4.88725811]
[1724486258431,25.56626,2764.6,2763.9,1.26918811]
[1724486258925,21.9491,2764.6,2764.1,1.26918811]
[1724486259126,2.556617,2764.5,2764.1,1.26918811]
[1724486259327,2.556617,2764.5,2763.9,1.26918811]
[1724486259862,6.173907,2764.5,2763.9,1.26918811]
[1724486260574,6.173907,2764.5,2763.6,3.61838]
[1724486260737,6.173907,2764.5,2763.7,0.55]
[1724486260937,2.8123007,2764.4,2763.7,0.55]
[1724486262660,2.8123007,2764.4,2763.7,4.16833]
[1724486262830,23.06729,2764.5,2763.7,0.55]
[1724486263033,3.0,2764.4,2763.7,4.16829]
[1724486263432,23.06729,2764.5,2763.7,4.16829]
[1724486264046,23.06729,2764.5,2763.7,0.55]
[1724486264248,23.06729,2764.5,2763.8,0.416838]
[1724486264578,23.06729,2764.5,2763.9,0.55]
[1724486265068,3.61743,2764.4,2763.9,0.55]
[1724486269576,3.61743,2764.4,2763.7,0.55]
[1724486273648,6.61703,2764.7,2763.8,3.61808]
[1724486273858,3.61703,2764.7,2763.9,0.966808]
[1724486274054,3.0,2764.6,2763.9,0.966808]
[1724486274296,6.61716,2764.6,2763.9,0.966808]
[1724486275798,3.0,2764.6,2763.9,4.584858]
[1724486276015,6.61703,2764.7,2763.9,4.584858]
[1724486276315,6.61703,2764.7,2764.0,0.8202938]
[1724486276479,6.61703,2764.7,2764.1,0.55]
[1724486278181,3.61716,2764.6,2764.1,0.55]
[1724486278577,3.0,2764.7,2764.1,0.55]
[1724486278835,6.61704,2764.7,2764.1,0.55]
[1724486279204,6.61704,2764.7,2764.1,2.8612]
[1724486279844,3.0,2764.7,2764.1,3.59114638]
[1724486281157,3.61665,2765.0,2764.1,3.59114638]
[1724486281281,3.61665,2765.0,2764.2,3.61759]
[1724486281506,3.61678,2764.9,2764.3,0.55]
[1724486281704,3.61665,2765.0,2764.3,0.55]
[1724486281705,3.6169,2764.8,2764.3,0.55]
[1724486281936,3.6169,2764.8,2764.2,0.55]
[1724486282139,7.23389,2764.8,2764.2,0.55]
[1724486282313,3.61715,2764.7,2764.2,0.55]
[1724486282515,3.61692,2764.8,2764.2,0.55]
[1724486283567,3.61703,2764.7,2764.2,0.55]
[1724486284166,6.682916,2764.7,2763.8,6.09814]
[1724486284325,5.95953,2764.7,2763.8,6.09814]
[1724486284847,5.95953,2764.7,2763.9,3.61806]
[1724486285350,5.95953,2764.7,2764.0,3.61789]
[1724486286045,5.95953,2764.7,2764.1,0.55]
[1724486287358,2.3425,2764.7,2764.1,0.55]
[1724486287564,5.95955,2764.7,2764.1,0.55]
[1724486287862,6.917185,2764.7,2764.1,0.55]
[1724486288945,3.300135,2764.7,2764.1,0.55]
[1724486289147,5.9593,2764.9,2764.1,4.1678]
[1724486290335,9.57615,2764.9,2764.1,4.1678]
[1724486290929,9.57615,2764.9,2764.2,3.61767]
[1724486290930,5.9593,2764.9,2764.2,3.61767]
[1724486291132,5.9593,2764.9,2764.3,0.55]
[1724486291958,2.3425,2764.9,2764.3,0.55]
[1724486293051,5.95927,2764.9,2764.3,0.55]
[1724486293247,7.45,2765.0,2764.3,4.16748]
[1724486294419,7.45,2765.0,2764.3,5.193986]